[Event "2nd Serbia Open Masters 2022"]
[Site "Novi Sad"]
[Date "2022.06.29"]
[Round "2.16"]
[White "Injac, Teodora"]
[Black "Zanan, Evgeny"]
[Result "1-0"]
[ECO "E59"]
[WhiteElo "2384"]
[BlackElo "2534"]
[Annotator "TA"]
[PlyCount "143"]
[EventDate "2022.06.28"]
[EventType "swiss"]
[EventCountry "SRB"]
[SourceTitle "playchess.com"]
[Source "ChessBase"]
[SourceQuality "1"]
[TimeControl "40/5400+30:900+30"]

{[%evp 20,143,16,18,12,0,14,0,8,-3,0,0,13,23,60,53,58,53,58,52,62,58,58,49,50,45,78,44,42,45,94,0,164,177,455,459,557,549,564,567,795,327,320,307,565,563,560,555,538,527,435,286,291,271,310,283,322,250,298,257,267,247,256,208,214,199,234,228,250,228,302,291,303,245,325,347,388,359,423,306,291,276,276,276,266,258,258,258,258,258,258,258,280,280,280,280,280,0,280,280,258,254,245,245,407,383,2626,2572,2444,2385,585,123,2564,2394,2256,1750,1729,1522,29970,29971,29975,29976,29973,29974,29967,29965]} 1. d4 {[%emt 0:00:28]} Nf6 {[%emt 0:05:54]} 2. c4 {[%emt 0:00:11]} e6 {[%emt 0:00:11]} 3. Nc3 {[%emt 0:00:27]} Bb4 {[%emt 0:03:02]} 4. e3 {[%emt 0:00:27]} O-O {[%emt 0:00:13]} 5. Bd3 {[%emt 0:00:41]} d5 {[%emt 0:00:13]} 6. a3 {[%emt 0:00:42]} Bxc3+ {[%emt 0:01:46]} 7. bxc3 {[%emt 0:00:03]} dxc4 {[%emt 0:00:41]} 8. Bxc4 {[%emt 0:00:06]} c5 {[%emt 0:00:04]} 9. Nf3 {[%emt 0:01:05]} Nc6 {[%emt 0:06:16]} 10. O-O {[%emt 0:03:01]} Qc7 {[%emt 0:02:19]} 11. Re1 $1 {[%emt 0:07:10][%mdl 4] 11.Re1 is the recent fashion.} Rd8 {[%emt 0:11:38] [#] E59: Nimzo-Indian: Rubinstein: Main Line: 7...Nc6 8 a3 Bxc3 9 bxc3 dxc4.} 12. Bf1 $146 {[%emt 0:01:47]} ({Predecessor:} 12. Ba2 e5 13. Ng5 Rd7 14. d5 e4 15. Qc2 Ne5 16. Nxe4 Nxd5 17. f4 Ng6 18. c4 Nde7 19. Bb2 {1-0 (36) Pechac,J (2598)-Stocek,J (2541) Prague 2022}) 12... e5 {[%emt 0:00:50]} 13. h3 {[%emt 0:01:29]} Bf5 {[%emt 0:10:46] The position is equal.} 14. Bb5 {[%emt 0:15:52]} e4 {[%emt 0:03:54]} 15. Nd2 {[%emt 0:03:30]} Ne7 {[%emt 0:03:42]} 16. a4 {[%emt 0:12:04]} Ng6 {[%emt 0:16:43]} 17. Ba3 {[%emt 0:10:28]} b6 {[%emt 0:04:28]} 18. a5 {[%emt 0:00:25]} Nh4 {[%emt 0:10:45]} 19. axb6 {[%emt 0:16:41]} axb6 {[%emt 0:01:18]} 20. Bb2 {[%emt 0:01:30]} Rxa1 {[%emt 0:02:42]} 21. Qxa1 {[%emt 0:00:23]} h5 {[%emt 0:07:16]} 22. Bf1 {[%emt 0:04:12]} Nd5 {[%emt 0:02:14]} 23. c4 {[%emt 0:08:14]} (23. Qd1 $5 {[%cal Rd1h5]}) 23... Nb4 {[%emt 0:00:08]} 24. Qd1 {[%emt 0:11:34] Inhibits Nc2.} Rd6 {[%emt 0:04:48]} (24... Qe7 $1 $14 {is superior.}) 25. Qxh5 {[%emt 0:00:00]} ({White should try} 25. g3 $16) 25... Rh6 $2 {[%emt 0:00:05]} (25... Qe7 $1 $11 {and Black stays safe.}) 26. Qg5 $36 {[%emt 0:00:00][%mdl 2048] White is really pushing.} Bxh3 $2 {[%emt 0:00:33]} (26... f6 27. Qg3 Nf3+ 28. Nxf3 (28. gxf3 Rg6 $11) 28... Qxg3 29. fxg3 exf3) 27. dxc5 {[%emt 0:00:37][%csl Gb2][%cal Rg5g7]} ({Avoid the trap} 27. gxh3 $2 Rg6 28. Qxg6 fxg6 $19) 27... Nf5 {[%emt 0:00:54]} 28. Nxe4 {[%emt 0:00:23]} ({Stronger than} 28. gxh3 Rg6 29. Qxg6 fxg6 $11) 28... Rg6 {[%emt 0:00:31] Prevents Nf6+.} 29. Qf4 {[%emt 0:00:32]} Qd8 {[%emt 0:00:31]} 30. Ng3 {[%emt 0:00:51]} (30. cxb6 $142 Nh4 31. Nf6+ $1 {[%mdl 512]} gxf6 32. Qxh4) 30... Nxg3 {[%emt 0:00:26]} 31. fxg3 {[%emt 0:00:03]} Bg4 {[%emt 0:00:34]} (31... Bc8 {was necessary.} 32. cxb6 Qxb6) 32. cxb6 {[%emt 0:00:30]} Qxb6 {[%emt 0:00:12]} 33. Bd4 {[%emt 0:00:24]} Qd8 {[%emt 0:00:46]} 34. Rb1 {[%emt 0:00:33]} Nc6 {[%emt 0:00:16]} 35. Rb6 {[%emt 0:01:03][%cal Ob6c6]} Bd7 {[%emt 0:00:39]} 36. Rb7 {[%emt 0:00:25]} Be6 {[%emt 0:00:40]} 37. Qc7 {[%emt 0:00:30]} ({Not} 37. Bd3 Rg4 38. Qf2 Nxd4 39. exd4 Rxd4 $14) 37... Qe8 {[%emt 0:00:23]} 38. Rb6 {[%emt 0:00:28]} Bf5 {[%emt 0:00:28]} 39. Qf4 {[%emt 0:00:31]} Be4 {[%emt 0:00:34]} 40. Rb5 {[%emt 0:00:00]} Qe6 {[%emt 0:00:00]} 41. Rg5 {[%emt 0:03:23]} Rxg5 {[%emt 0:07:19]} 42. Qxg5 {[%emt 0:00:04][%csl Gd4][%cal Rg5g7]} f6 {[%emt 0:00:06]} 43. Qf4 {[%emt 0:01:05]} Ne7 {[%emt 0:01:05]} 44. g4 {[%emt 0:03:19][%cal Bg3g4,Bg4g5][%mdl 32]} Nc6 {[%emt 0:03:12]} 45. g5 {[%emt 0:02:51]} f5 {[%emt 0:00:52]} 46. Qc7 {[%emt 0:03:56][%csl Gd4][%cal Rc7g7]} Qg6 {[%emt 0:00:41]} 47. Qg3 {[%emt 0:01:26]} Kh7 {[%emt 0:03:23]} 48. c5 {[%emt 0:00:29]} Qf7 {[%emt 0:01:58]} 49. Qh4+ {[%emt 0:02:05]} Kg8 {[%emt 0:00:04]} 50. g6 {[%emt 0:01:20]} Qxg6 {[%emt 0:00:04]} 51. Bc4+ {[%emt 0:00:04] A strong pair of Bishops.} Kf8 {[%emt 0:00:05][%csl Ge4][%cal Rg6g2]} 52. Qh8+ {[%emt 0:00:15]} Ke7 {[%emt 0:00:04][%csl Ge4][%cal Rg6g2]} 53. Qxg7+ {[%emt 0:00:13]} Qxg7 {[%emt 0:00:04]} 54. Bxg7 {[%emt 0:00:02][%mdl 4096] Endgame KBB-KBN} Na5 {[%emt 0:00:22]} 55. Bg8 {[%emt 0:00:58]} Nb7 {[%emt 0:01:36]} 56. Bd4 {[%emt 0:00:21] Bh7 is the strong threat.} Bc6 {[%emt 0:01:35]} 57. Bh7 {[%emt 0:01:44]} Ke6 {[%emt 0:00:01]} 58. Bg8+ {[%emt 0:00:09]} Ke7 $1 {[%emt 0:00:03]} 59. Kf2 {[%emt 0:00:51]} Nd8 {[%emt 0:00:15]} 60. Bc4 {[%emt 0:00:32]} Be4 {[%emt 0:02:37]} 61. Be2 {[%emt 0:00:36]} Ke6 $2 {[%emt 0:00:30]} (61... Ne6 62. g4 fxg4 63. Bxg4 Kd7) 62. Bf3 {[%emt 0:00:49] Black must now prevent Bxe4.} Kd5 $2 {[%emt 0:00:34]} (62... Bd3 63. Kg3 Bb5) 63. Bxe4+ {[%emt 0:00:33]} Kxe4 {[%emt 0:00:04] KB-KN} 64. Bf6 {[%emt 0:00:23]} Nc6 {[%emt 0:00:43]} 65. g3 $2 {[%emt 0:00:11]} (65. Bg5 $18 {has better winning chances. And now Kg3 would win.} Kd5 66. Kg3) 65... Nb4 $16 {[%emt 0:00:42] This move loses the game for Black.} 66. Bd4 {[%emt 0:00:13]} Nc6 {[%emt 0:00:24] [#]} 67. Kg2 $1 {[%emt 0:00:28]} Nd8 {[%emt 0:00:35] [#]} 68. Kh3 $1 {[%emt 0:00:19]} Kf3 {[%emt 0:00:34]} 69. Kh4 {[%emt 0:00:29] White mates.} Nc6 {[%emt 0:00:27]} 70. Kg5 {[%emt 0:00:30]} Ke4 {[%emt 0:00:11]} 71. Kf6 {[%emt 0:00:16]} Nb4 {[%emt 0:00:34]} 72. Ke6 {[%emt 0:00:19] Weighted Error Value: White=0.29 (precise) /Black=0.35} 1-0

[Event "2nd Serbia Open Masters 2022"]
[Site "Novi Sad"]
[Date "2022.06.29"]
[Round "2.17"]
[White "Ceres, Dragos"]
[Black "Ferreira, Jorge Viterbo"]
[Result "1-0"]
[ECO "D17"]
[WhiteElo "2380"]
[BlackElo "2512"]
[Annotator "TA"]
[PlyCount "107"]
[EventDate "2022.06.28"]
[EventType "swiss"]
[EventCountry "SRB"]
[SourceTitle "playchess.com"]
[Source "ChessBase"]
[SourceQuality "1"]
[TimeControl "40/5400+30:900+30"]

{[%evp 13,107,-13,30,16,21,13,27,29,22,23,78,75,75,69,71,57,87,97,157,32,125,135,126,125,133,100,84,72,100,96,100,100,95,103,174,177,154,175,154,120,191,186,245,245,289,285,293,293,293,293,293,289,336,341,345,327,367,367,373,375,366,355,335,335,507,447,463,352,542,558,477,542,524,472,644,617,1144,1350,1096,1008,1049,765,1028,1043,986,933,1469,1354,931,826,803,698,764,762,29988,29987]} 1. d4 {[%emt 0:00:07]} d5 {[%emt 0:00:09]} 2. c4 {[%emt 0:00:05]} c6 {[%emt 0:00:14]} 3. Nf3 {[%emt 0:00:07]} Nf6 {[%emt 0:00:07]} 4. Nc3 {[%emt 0:00:16]} dxc4 {[%emt 0:00:37]} 5. a4 {[%emt 0:00:09]} Bf5 {[%emt 0:00:25]} 6. Ne5 {[%emt 0:00:07]} e6 {[%emt 0:01:36]} 7. f3 {[%emt 0:01:14]} c5 {[%emt 0:01:44]} 8. e4 {[%emt 0:00:54] D17: Slav Defence: 5 a4 Bf5: Lines with 6 Nh4 and 6 Ne5.} Bg6 {[%emt 0:00:03] 8...Bg6 scores better than 8...cxd4.} (8... Qxd4 $2 9. Bf4 Qxd1+ 10. Rxd1 $18) 9. Be3 {[%emt 0:00:22]} cxd4 {[%emt 0:01:12]} 10. Qxd4 {[%emt 0:00:06] White has an edge.} Qxd4 {[%emt 0:01:57]} 11. Bxd4 {[%emt 0:00:08]} Nbd7 {[%emt 0:09:52]} (11... Nfd7 $11 {keeps the balance.}) 12. Nxc4 $16 {[%emt 0:06:01] White is more active.} ({But not} 12. Bxc4 Nxe5 13. Bxe5 Bc5 $14) 12... Bb4 {[%emt 0:06:50]} 13. Kf2 {[%emt 0:02:52]} O-O {[%emt 0:07:47]} 14. Be2 {[%emt 0:03:44]} Rfd8 {[%emt 0:06:16]} 15. Rhd1 {[%emt 0:02:09] [#]} Bc5 $146 {[%emt 0:12:13]} (15... Ne8 $142) ({Predecessor:} 15... Nc5 16. Be3 Nfd7 17. Na2 Na6 18. Rxd7 Rxd7 19. Ne5 Rc7 20. Nxg6 hxg6 21. Bxa6 Rc2+ {1-0 (78) Bluvshtein,M (2544)-Feher,G (2390) Zalakaros 2008}) 16. Ke3 {[%emt 0:04:51]} ({White should play} 16. Na5 $16) 16... Kf8 {[%emt 0:03:50]} (16... Be7 $14) 17. Bxc5+ {[%emt 0:04:41]} Nxc5 {[%emt 0:00:05]} 18. b4 {[%emt 0:00:26]} Na6 {[%emt 0:04:11]} (18... Nb3 $2 19. Rab1 $18) 19. Rxd8+ {[%emt 0:06:15]} Rxd8 {[%emt 0:00:06]} 20. Rb1 {[%emt 0:01:45]} (20. Na2 {feels hotter.} Nb8 21. Na5 b6 22. Nc4) 20... Rc8 {[%emt 0:17:17]} 21. Rb3 {[%emt 0:00:33]} Nc7 {[%emt 0:04:15]} 22. Nb5 {[%emt 0:08:00]} Nxb5 {[%emt 0:00:21]} 23. axb5 {[%emt 0:00:03] Ra3 is the strong threat.} Nd7 {[%emt 0:01:14]} (23... Rc7 $16 {was necessary.}) 24. Ra3 $18 {[%emt 0:01:02]} Ra8 {[%emt 0:04:31]} 25. Na5 {[%emt 0:05:14]} Rb8 {[%emt 0:02:49]} 26. Rc3 {[%emt 0:00:14]} b6 {[%emt 0:04:45]} (26... Ke8 $16) 27. Nc6 {[%emt 0:01:05]} Rc8 {[%emt 0:00:29]} (27... Ra8 $142 28. Rd3 Ke8) 28. Ra3 {[%emt 0:00:37]} Rc7 {[%emt 0:00:36]} 29. Nxa7 {[%emt 0:01:17]} Nb8 {[%emt 0:00:26] [#]} 30. Nc6 $1 {[%emt 0:01:06]} Nxc6 {[%emt 0:01:18]} 31. Rc3 {[%emt 0:00:19][%mdl 64] Pin} (31. bxc6 Rxc6 32. Ra8+ Ke7 $16) 31... Ke7 {[%emt 0:02:40][%cal Oe7d6]} 32. bxc6 {[%emt 0:00:09][%mdl 4096] Endgame KRB-KRB} ({Weaker is} 32. Rxc6 Rxc6 33. bxc6 Kd6 $16) 32... e5 {[%emt 0:00:57]} 33. b5 {[%emt 0:00:33]} f6 {[%emt 0:00:24]} 34. Bc4 {[%emt 0:00:22]} Ra7 {[%emt 0:01:07]} 35. g3 {[%emt 0:00:28]} Kd6 {[%emt 0:00:52]} 36. Rd3+ {[%emt 0:00:19]} Ke7 {[%emt 0:00:05]} 37. f4 {[%emt 0:00:33]} exf4+ {[%emt 0:00:47]} 38. gxf4 {[%emt 0:00:07]} ({Don't play} 38. Kxf4 Bh5 39. h4 Be2 $18) 38... h6 {[%emt 0:01:06]} (38... Be8 $142 39. Bg8 h6) 39. h4 {[%emt 0:01:42]} Be8 {[%emt 0:01:10]} 40. Kd4 {[%emt 0:00:00]} Ra8 {[%emt 0:00:00]} (40... Ra4 $142 41. Kc3 Ra3+ 42. Bb3 Ra5) 41. Rg3 {[%emt 0:00:43]} g6 {[%emt 0:06:57]} 42. Rg1 {[%emt 0:00:45]} Ra4 {[%emt 0:02:41]} 43. Kc3 {[%emt 0:00:33]} Ra3+ {[%emt 0:01:16]} 44. Kb4 {[%emt 0:02:49]} Ra7 {[%emt 0:00:44]} 45. f5 {[%emt 0:01:12]} g5 {[%emt 0:00:40]} 46. hxg5 {[%emt 0:00:01]} hxg5 {[%emt 0:00:15]} 47. Rd1 {[%emt 0:00:39]} Ra8 {[%emt 0:01:54]} 48. Be6 {[%emt 0:00:13] [#] Intending c7 and mate.} Ra7 {[%emt 0:00:28]} 49. Rd2 {[%emt 0:00:22]} Rc7 {[%emt 0:03:05]} 50. Kc4 {[%emt 0:00:48]} Ra7 {[%emt 0:00:26]} 51. Rh2 {[%emt 0:00:57] White wants to mate with Rh7+.} Kd6 {[%emt 0:00:55]} 52. Rh8 {[%emt 0:00:10]} Re7 {[%emt 0:02:15]} 53. Kd4 {[%emt 0:00:03] Threatens to win with Rf8.} Kc7 {[%emt 0:01:25]} 54. e5 {[%emt 0:00:09] Weighted Error Value: White=0.17 (very precise) /Black=0.53} 1-0

[Event "2nd Serbia Open Masters 2022"]
[Site "Novi Sad"]
[Date "2022.06.29"]
[Round "2.18"]
[White "Pap, Misa"]
[Black "Petkov, Momchil"]
[Result "1/2-1/2"]
[ECO "B22"]
[WhiteElo "2375"]
[BlackElo "2494"]
[Annotator "RC"]
[PlyCount "80"]
[EventDate "2022.06.28"]
[EventType "swiss"]
[EventCountry "SRB"]
[SourceTitle "playchess.com"]
[Source "ChessBase"]
[SourceQuality "1"]
[TimeControl "40/5400+30:900+30"]

1. e4 {[%emt 0:00:16]} c5 {[%emt 0:00:18]} 2. c3 {[%emt 0:00:06]} d5 {[%emt 0:00:19]} 3. exd5 {[%emt 0:00:05]} Qxd5 {[%emt 0:00:09]} 4. d4 {[%emt 0:01:55]} Nf6 {[%emt 0:00:48]} 5. Nf3 {[%emt 0:00:13]} e6 {[%emt 0:00:19]} 6. Be3 {[%emt 0:01:41]} cxd4 {[%emt 0:01:04]} 7. cxd4 {[%emt 0:00:01]} Bb4+ {[%emt 0:00:10]} 8. Nc3 {[%emt 0:00:01]} Qa5 {[%emt 0:00:23]} 9. Qc2 {[%emt 0:01:40]} O-O {[%emt 0:05:34]} 10. Bd3 {[%emt 0:00:13]} Nc6 {[%emt 0:13:49]} 11. O-O {[%emt 0:02:36]} h6 {[%emt 0:06:25]} 12. Rfe1 {[%emt 0:17:52]} Bd6 {[%emt 0:04:07]} 13. a3 {[%emt 0:02:46]} Bd7 {[%emt 0:09:33]} 14. Nb5 {[%emt 0:11:05]} Bb8 {[%emt 0:02:20]} 15. b4 {[%emt 0:00:34]} Qd8 {[%emt 0:00:09]} 16. Qd2 {[%emt 0:02:43]} Ne7 {[%emt 0:05:57]} 17. Nc3 {[%emt 0:04:07]} Ng4 {[%emt 0:08:17]} 18. Bf4 {[%emt 0:04:46]} Bc6 {[%emt 0:09:10]} 19. Ne5 {[%emt 0:01:28]} Nxe5 {[%emt 0:02:24]} 20. Bxe5 {[%emt 0:11:03]} Bxe5 {[%emt 0:04:19]} 21. dxe5 {[%emt 0:00:24]} Ng6 {[%emt 0:01:00]} 22. Rad1 {[%emt 0:04:48]} Qh4 {[%emt 0:05:16]} 23. Qe3 {[%emt 0:08:24]} Nf4 {[%emt 0:01:31]} 24. Be4 {[%emt 0:03:52]} Bxe4 {[%emt 0:01:29]} 25. Qxe4 {[%emt 0:00:50]} Rac8 {[%emt 0:07:50]} 26. g3 {[%emt 0:03:07]} Qg4 {[%emt 0:03:32]} 27. Qxf4 {[%emt 0:06:17]} Qxf4 {[%emt 0:00:05]} 28. gxf4 {[%emt 0:00:03]} Rxc3 {[%emt 0:00:07]} 29. Rd7 {[%emt 0:01:02]} Rxa3 {[%emt 0:00:40]} 30. Rxb7 {[%emt 0:00:01]} Kh7 {[%emt 0:02:11]} 31. Re3 {[%emt 0:00:48]} Ra1+ {[%emt 0:01:33]} 32. Kg2 {[%emt 0:00:01]} Kg6 {[%emt 0:00:48]} 33. Rg3+ {[%emt 0:00:12]} Kf5 {[%emt 0:01:10]} 34. Rxg7 {[%emt 0:00:06]} Kxf4 {[%emt 0:00:05]} 35. Rbxf7+ {[%emt 0:00:28]} Rxf7 {[%emt 0:00:06]} 36. Rxf7+ {[%emt 0:00:06]} Kxe5 {[%emt 0:00:03]} 37. Rh7 {[%emt 0:00:33]} Rb1 {[%emt 0:01:01]} 38. Rxa7 {[%emt 0:00:57]} Rxb4 {[%emt 0:00:05]} 39. Rh7 {[%emt 0:00:06]} Rg4+ {[%emt 0:00:05]} 40. Kf3 {[%emt 0:00:00]} Rg6 {[%emt 0:00:00]} 1/2-1/2

[Event "2nd Serbia Open Masters 2022"]
[Site "Novi Sad"]
[Date "2022.06.29"]
[Round "2.19"]
[White "Santiago, Yago De Moura"]
[Black "Tadic, Stefan"]
[Result "1-0"]
[ECO "D15"]
[WhiteElo "2498"]
[BlackElo "2358"]
[Annotator "TA"]
[PlyCount "91"]
[EventDate "2022.06.28"]
[EventType "swiss"]
[EventCountry "SRB"]
[SourceTitle "playchess.com"]
[Source "ChessBase"]
[SourceQuality "1"]
[TimeControl "40/5400+30:900+30"]

{[%evp 9,91,-29,-9,-16,-5,-70,-64,-67,33,26,29,-20,15,6,22,14,18,13,32,22,20,21,50,10,37,0,0,0,8,0,0,0,13,16,20,36,20,15,54,54,54,54,70,65,54,54,495,493,486,486,486,486,476,270,445,441,440,435,488,488,488,488,488,462,527,519,576,569,568,561,554,554,552,552,537,529,503,495,488,487,435,421,4132,2840]} 1. d4 {[%emt 0:03:56]} d5 {[%emt 0:00:17]} 2. c4 {[%emt 0:00:27]} c6 {[%emt 0:00:32]} 3. Nc3 {[%emt 0:01:16]} Nf6 {[%emt 0:00:44]} 4. Nf3 {[%emt 0:00:08]} dxc4 {[%emt 0:00:35]} 5. e4 {[%emt 0:06:17]} b5 $1 {[%emt 0:00:28][%cal Bb7b5,Bb5b4][%mdl 32]} 6. Be2 {[%emt 0:00:07] D15: Slav Defence: 4 Nc3 a6 and gambit lines after 4 Nc3 dxc4.} e6 {[%emt 0:11:30]} 7. a4 {[%emt 0:01:11]} ({White should play} 7. O-O $11) 7... b4 $1 $15 {[%emt 0:00:28]} 8. e5 {[%emt 0:00:13] Black is slightly better.} Nd5 {[%emt 0:07:32]} (8... bxc3 $15 9. exf6 cxb2 10. Bxb2 Bb4+ 11. Kf1 gxf6 12. Bxc4 a5) 9. Ne4 $1 $14 {[%emt 0:01:31]} Ba6 {[%emt 0:00:20]} 10. Bd2 {[%emt 0:00:42] [#]} (10. O-O $142) 10... c3 $146 {[%emt 0:22:48]} (10... Qa5 $5 {[%cal Rc4c3]}) ({Predecessor:} 10... Qa5 11. Rc1 Nb6 12. O-O Qxa4 13. Qe1 h6 14. Nc5 Bxc5 15. dxc5 Nd5 16. Bxc4 Bxc4 17. Rxc4 {0-1 (34) Yang,Q (2084)-Holt,C (2553) Chess.com INT 2022}) 11. bxc3 {[%emt 0:00:41]} bxc3 {[%emt 0:01:30]} 12. Nxc3 {[%emt 0:01:57]} Nxc3 {[%emt 0:03:18]} 13. Bxc3 {[%emt 0:01:57]} Qd5 {[%emt 0:05:50]} 14. O-O {[%emt 0:02:15]} Bxe2 {[%emt 0:04:40]} 15. Qxe2 {[%emt 0:00:09]} Be7 {[%emt 0:00:06]} 16. Rab1 {[%emt 0:14:59][%cal Ba1b1,Bb1b4,Bb4c4][%mdl 32]} Nd7 {[%emt 0:02:36]} 17. Bb4 {[%emt 0:02:39]} Bxb4 {[%emt 0:03:27]} 18. Rxb4 {[%emt 0:00:47]} O-O {[%emt 0:00:56]} 19. Rc4 {[%emt 0:03:42]} Rab8 {[%emt 0:06:16]} 20. Rfc1 {[%emt 0:05:38]} Rb6 {[%emt 0:01:02]} 21. Qc2 {[%emt 0:18:09][%cal Rc4c6]} Rfb8 {[%emt 0:01:29]} 22. h3 {[%emt 0:00:43][%cal Rc4c6]} (22. Rxc6 $2 Rxc6 23. Qd2 Rxc1+ 24. Qxc1 Qe4 $19) 22... Rb2 {[%emt 0:03:13]} 23. Qd3 {[%emt 0:00:58]} Rb1 {[%emt 0:06:03]} 24. Rxb1 {[%emt 0:01:53]} ({Much worse is} 24. Rxc6 Qxc6 25. Rxb1 Rxb1+ 26. Qxb1 Qxa4 $11) (24. Ng5 h6 25. Rxb1 (25. Qh7+ Kf8 $11) 25... Rxb1+ 26. Qxb1 Qxc4 $11) 24... Rxb1+ {[%emt 0:00:07]} 25. Qxb1 {[%emt 0:01:06][%cal Oc4c5]} Qxc4 {[%emt 0:00:04][%mdl 4096] Endgame KQN-KQN} 26. Qb7 $1 {[%emt 0:00:20][%csl LRa7,LRd7]} Qc1+ {[%emt 0:00:04]} 27. Kh2 {[%emt 0:00:07]} Qf4+ $2 {[%emt 0:00:06][%mdl 8192] [#] Loses the game.} (27... Nf8 $1 $14) 28. Kh1 $1 $18 {[%emt 0:00:12]} Nf8 {[%emt 0:03:35]} 29. Qxa7 {[%emt 0:04:40] a5 is the strong threat.} Qc1+ {[%emt 0:06:14]} 30. Ng1 {[%emt 0:00:25]} h6 {[%emt 0:00:04]} 31. Qa8 {[%emt 0:01:24]} (31. a5 $142 Ng6 32. a6) 31... c5 $2 {[%emt 0:00:50] [#]} (31... Qb2 32. a5 (32. Qxc6 Qxf2 33. a5 Qxd4 $16) 32... Qxd4) 32. dxc5 $1 {[%emt 0:04:02] White is clearly winning.} Qxc5 {[%emt 0:00:07]} 33. a5 {[%emt 0:00:11] And now a6 would win.} Kh7 {[%emt 0:01:45]} (33... Qxf2 $2 34. a6) 34. a6 {[%emt 0:00:42]} Nd7 {[%emt 0:00:07]} 35. a7 {[%emt 0:00:09] aiming for Qe4+.} Nb6 {[%emt 0:00:04]} 36. Qe4+ {[%emt 0:05:31]} g6 {[%emt 0:00:03]} 37. Qb7 {[%emt 0:02:58] Against Qc7} Qxf2 {[%emt 0:00:21]} 38. Nf3 {[%emt 0:00:23]} Kg7 {[%emt 0:00:18] [#]} 39. Qxb6 $3 {[%emt 0:00:44][%mdl 512]} Qxb6 {[%emt 0:00:08]} 40. a8=Q {[%emt 0:00:00]} Qb1+ {[%emt 0:00:00]} 41. Kh2 {[%emt 0:00:16]} Qb4 {[%emt 0:01:38]} 42. Qa1 {[%emt 0:00:44]} Qf4+ {[%emt 0:00:23]} 43. Kh1 {[%emt 0:00:10]} g5 {[%emt 0:00:40]} 44. Qd4 {[%emt 0:00:19]} Qc1+ {[%emt 0:00:26]} 45. Kh2 {[%emt 0:00:08]} h5 {[%emt 0:00:25]} (45... Qc2 $142 46. Qe3 Kh7) 46. Qd2 {[%emt 0:00:41] Weighted Error Value: White=0.13 (very precise) /Black=0.32} 1-0